Cogmind - Beta 13 *** ADVENTURER MODE // 2024.04.03 @ 18:27:26 Player: Geck Result: Destroyed by as-73055 with Assembled Heavy Rifle Performance ------------- Evolutions (0) 0 Regions Visited (2) 400 Robots Destroyed (9) 45 Value Destroyed (84) 84 Prototype IDs (0) 0 Alien Tech Used (0) 0 Bonus (0) 0 TOTAL SCORE: 529 Bonus ------- None Cogmind --------- Core Integrity 0/250 Matter 257/300 Energy 50/250 System Corruption 5% Temperature Cool (0) Movement Core (150) Ox2 Location -10/Mines Parts ------- > --- POWER (1) -------- Ion Engine > --- PROPULSION (2) --- (None) > --- UTILITY (2) ------ ECM Suite Weapon Shielding > --- WEAPON (2) ------- (None) > --- INVENTORY (5) ---- Large Storage Unit Peak State ------------ > --- POWER ------------ Light Ion Engine > --- PROPULSION ------- Wheel Wheel > --- UTILITY ---------- Heat Sink Weapon Shielding > --- WEAPON ----------- Medium Laser Grenade Launcher > --- INVENTORY -------- Ion Engine Aluminum Leg Light Assault Rifle [Rating: 7] Favorites ----------- Power Light Ion Engine Engine Light Ion Engine Propulsion Wheel Leg Aluminum Leg Wheel Wheel Utility Heat Sink Device Heat Sink Storage Large Storage Unit Protection Weapon Shielding Weapon Medium Laser Energy Gun Medium Laser Ballistic Gun Light Assault Rifle Launcher Grenade Launcher Build | -11 -10 -10 ------- Run | Yrd Mat Min Slots Evolved . | . . . Power . | . . . Propulsion . | . . . Utility . | . . . Weapon . | . . . Parts Attached 15 | 6 3 6 Power 3 | 1 . 2 Engine 3 | 1 . 2 Core . | . . . Reactor . | . . . Propulsion 3 | 2 . 1 Treads . | . . . Leg 1 | . . 1 Wheel 2 | 2 . . Hover . | . . . Flight . | . . . Utility 5 | 1 2 2 Device 2 | 1 . 1 Storage 1 | . 1 . Processor . | . . . Hackware . | . . . Protection 2 | . 1 1 Artifact . | . . . Weapon 4 | 2 1 1 Energy Gun 1 | 1 . . Energy Cannon . | . . . Ballistic Gun 2 | 1 . 1 Ballistic Cannon . | . . . Launcher 1 | . 1 . Special Weapon . | . . . Impact Weapon . | . . . Slashing Weapon . | . . . Piercing Weapon . | . . . Special Melee Weapon . | . . . Unidentified Prototypes . | . . . Parts Lost 9 | . . 9 Power 2 | . . 2 Propulsion 3 | . . 3 Utility 1 | . . 1 Weapon 3 | . . 3 Highest Loss Streak 9 | . . 9 To Critical Strikes . | . . . Average Slot Usage (%) 88 | . 94 77 Engine 12 | . 14 9 Wheel 24 | . 28 18 Device 12 | . 14 9 Storage 10 | . 8 14 Energy Gun 12 | . 14 9 Ballistic Gun 3 | . 1 6 Launcher 10 | . 12 7 Naked Turns . | . . . Heaviest Build 29 | 7 29 29 Greatest Support 20 | 20 20 20 Greatest Overweight (x) 6 | . 1 6 Average Overweight (x) . | . . 1 Largest Inventory Capacity 15 | 5 15 15 Average Capacity 9 | 5 10 14 Most Carried 6 | 3 6 6 Average Carried 3 | . 4 4 Final Capacity 15 | 5 15 5 Final Carried 6 | 2 6 1 Class Distribution -------------------- 100% | Mutant Dominant Class ---------------- Mutant | -10/Materials Mutant | -10/Mines Resources | -11 -10 -10 ----------- Run | Yrd Mat Min Matter Collected 338 | 263 75 . Remotely . | . . . Salvage Created 258 | 56 165 37 Parts 17 | 4 12 1 Haulers Intercepted . | . . . Recyclers Shooed . | . . . Parts Field Recycled . | . . . Retrieved Matter . | . . . Parts Self-Destructed . | . . . Prevented . | . . . Kills | -11 -10 -10 ------- Run | Yrd Mat Min Combat Hostiles Destroyed 7 | 1 2 4 Guns 1 | 1 . . AOE 6 | . 2 4 Classes Destroyed 7 | 2 3 2 Worker 1 | 1 . . Builder 2 | . 2 . Tunneler 1 | . . 1 Recycler 2 | . 2 . Swarmer 2 | . 2 . Grunt 1 | 1 . . Assembled 4 | . . 4 Best Kill Streak 6 | 2 6 5 Combat Bots Only 4 | 1 2 4 Max Kills in Single Turn 3 | 1 3 3 Gunslinging . | . . . Exploded 3 | . 1 3 Melee . | . . . Uniques/NPCs Destroyed . | . . . Combat | -11 -10 -10 -------- Run | Yrd Mat Min Hostile Shots Fired 97 | 1 27 69 Missed 27 | 1 11 15 Damage Taken 924 | . 108 816 Core 255 | . 26 229 Absorbed by Shields . | . . . Ignored by Resistances 272 | . 37 235 Core Remaining (%) 100 | 100 . . Volleys Fired 19 | 3 11 5 Largest 2 | 2 2 2 Hottest 80 | 70 80 80 Shots Fired 31 | 6 16 9 Gun 24 | 6 11 7 Cannon . | . . . Launcher 7 | . 5 2 Special . | . . . Kinetic 6 | 3 . 3 Thermal 18 | 3 11 4 Explosive 7 | . 5 2 Electromagnetic . | . . . Robot Hit Streak 6 | 6 5 4 Robot Miss Streak 1 | . 1 1 Penetration Max . | . . . Secondary Targets . | . . . Shots Hit Robots 23 | 6 10 7 Core Hits 26 | 4 8 14 Critical Kills . | . . . Critical Parts Destroyed . | . . . Critical Strikes . | . . . Melee Attacks . | . . . Impact . | . . . Slashing . | . . . Piercing . | . . . Sneak Attacks . | . . . Combat Hostiles . | . . . Follow-up Attacks . | . . . Damage Inflicted 760 | 59 329 372 Guns 220 | 59 98 63 Cannons . | . . . Explosions 540 | . 231 309 Melee . | . . . Ramming . | . . . Kinetic 48 | 23 . 25 Thermal 172 | 36 98 38 Explosive 540 | . 231 309 Electromagnetic . | . . . Impact . | . . . Slashing . | . . . Piercing . | . . . Highest Corruption 5 | . 1 5 Average Corruption 2 | . 1 2 Corruption Purged . | . . . Corruption Blocked . | . . . Effects 3 | . 1 2 Message Errors 1 | . . 1 Data Loss (minor) 2 | . 1 1 Overload Shots . | . . . Overflow Damage 24 | . . 24 Projectiles . | . . . Explosions 24 | . . 24 Melee . | . . . Knockbacks . | . . . Impact . | . . . Kinetic . | . . . Secondary . | . . . Self-Inflicted Damage 18 | . 18 . Shots 1 | . 1 . Rammed . | . . . Targets Rammed . | . . . Kicked . | . . . Crushed . | . . . Highest Temperature 90 | 60 . 90 Average Temperature 33 | 29 . 36 Received Heat Transfer 280 | . . 280 Siege Activations . | . . . Robots Corrupted . | . . . Combat Hostiles . | . . . Parts Fried . | . . . Impact Corruptions . | . . . Robots Melted . | . . . Combat Hostiles . | . . . Parts Melted . | . . . Heat Transferred 518 | 111 296 111 Parts Sabotaged . | . . . Parts Stolen . | . . . Parts Stripped . | . . . Power Chain Reactions . | . . . Alert | -11 -10 -10 ------- Run | Yrd Mat Min Peak Influence 114 | 25 114 57 Initial 37 | . 13 37 Average 46 | 5 86 31 Maximum Alert Level . | . . . Low Security (%) 100 | 100 100 100 Level 1 . | . . . Level 2 . | . . . Level 3 . | . . . Level 4 . | . . . Level 5 . | . . . High Security . | . . . Max Security . | . . . Squads Dispatched 1 | . 1 . Investigation 1 | . 1 . Extermination . | . . . Reinforcement . | . . . Assault . | . . . Garrison . | . . . Intercept . | . . . Searches Triggered . | . . . Construction Impeded . | . . . Haulers Reinforced . | . . . Active Scanning Responses . | . . . Cargo Convoy Interrupts . | . . . Stealth | -11 -10 -10 --------- Run | Yrd Mat Min Distress Signals . | . . . Communications Jammed . | . . . Distress Signals . | . . . Times Spotted 28 | 1 5 22 Peak Tracking Total 19 | 1 3 19 Tactical Retreats 2 | . . 2 Traps | -11 -10 -10 ------- Run | Yrd Mat Min Traps Triggered 2 | . 2 . Indirectly . | . . . Trap Hack Attempts . | . . . Triggered . | . . . Disarmed . | . . . Reprogrammed . | . . . Reused . | . . . Traps Extracted . | . . . Installed . | . . . Triggered . | . . . Machines | -11 -10 -10 ---------- Run | Yrd Mat Min Machines Disabled . | . . . Max in Single Turn . | . . . Machines Repaired . | . . . Machines Dismantled . | . . . Machines Sabotaged . | . . . Overloaded Fab Kills . | . . . Hacking | -11 -10 -10 --------- Run | Yrd Mat Min Machines Accessed 2 | . 1 1 Terminals 2 | . 1 1 Fabricators . | . . . Repair Stations . | . . . Recycling Units . | . . . Scanalyzers . | . . . Garrison Access . | . . . Total Hacks 4 | . 2 2 Successful 3 | . 1 2 Failed 1 | . 1 . Catastrophic . | . . . Database Lockouts . | . . . Manual . | . . . Terminals 4 | . 2 2 Fabricators . | . . . Repair Stations . | . . . Recycling Units . | . . . Scanalyzers . | . . . Garrison Access . | . . . Terminal Hacks 3 | . 1 2 Record 1 | . 1 . Dispatch Records 1 | . . 1 Zone Layout 1 | . . 1 Fabricator Hacks . | . . . Repair Station Hacks . | . . . Recycling Unit Hacks . | . . . Scanalyzer . | . . . Garrison Access Hacks . | . . . Unauthorized Hacks . | . . . Terminals . | . . . Fabricators . | . . . Repair Stations . | . . . Recycling Units . | . . . Scanalyzers . | . . . Garrison Access . | . . . Data Cores Recovered . | . . . Used . | . . . Hacking Detections 1 | . . 1 Full Trace Events . | . . . Feedback Events . | . . . Feedback Blocked . | . . . Robot Schematics Acquired . | . . . Robots Built . | . . . Authchips . | . . . Time . | . . . Total Robot Build Rating . | . . . Part Schematics Acquired . | . . . Parts Built . | . . . Authchips . | . . . Time . | . . . Total Part Build Rating . | . . . Parts Repaired . | . . . Time . | . . . Parts Recycled . | . . . Recycled Matter . | . . . Retrieved Matter . | . . . Retrieved Components . | . . . Parts Scanalyzed . | . . . Part Schematics Acquired . | . . . Parts Damaged . | . . . Bothacking | -11 -10 -10 ------------ Run | Yrd Mat Min Used RIF Installer . | . . . Robots Hacked . | . . . Non-combat . | . . . Combat . | . . . Robot Hacks Applied . | . . . Relay Couplers Released . | . . . Fabnet Peak Effective % . | . . . Robots Rewired . | . . . Allies Hacked . | . . . Hacks Repelled . | . . . Allies | -11 -10 -10 -------- Run | Yrd Mat Min Total Allies . | . . . Largest Group . | . . . Highest-Rated Group . | . . . Highest-Rated Ally . | . . . Total Orders . | . . . Ally Attacks . | . . . Total Damage . | . . . Kills . | . . . Allies Corrupted . | . . . Allies Melted . | . . . Intel | -11 -10 -10 ------- Run | Yrd Mat Min Robot Analysis Total . | . . . Derelict Logs Recovered 1 | . . 1 Drone Launches . | . . . Drone Recoveries . | . . . Exploration | -11 -10 -10 ------------- Run | Yrd Mat Min Turns Passed 384 | 126 166 92 Spaces Moved 337 | 134 144 59 Core 32 | 27 . 5 Treads . | . . . Legs 2 | . . 2 Wheels 303 | 107 144 52 Hover . | . . . Flight . | . . . Fastest Speed 50 | 50 80 95 Average Speed 89 | 73 90 122 Slowest Speed 350 | 80 95 350 Overloaded Moves . | . . . Propulsion Burnouts . | . . . Robots Hopped . | . . . Cave-ins Triggered . | . . . Exploration Rate (%) 19 | 6 33 19 Regions Visited 2 Branch Regions 1 Pre-discovered Areas . | . . . Known Exits Taken . | . . . Unknown Exits Taken 2 | 1 1 . Scrap Searched . | . . . Spaces Dug . | . . . Terrain Destroyed 50 | . 31 19 Melee . | . . . Projectile . | . . . AOE 50 | . 31 19 Terrain Rammed . | . . . Walls Destroyed . | . . . Machines Disabled . | . . . Actions | -11 -10 -10 --------- Run | Yrd Mat Min Total 388 | 156 162 70 Wait 2 | 2 . . Move 335 | 133 143 59 Hop . | . . . Pick Up 15 | 10 5 . Fast Attach . | . . . Attach 12 | 6 1 5 Detach . | . . . Swap 3 | . 2 1 Drop 2 | 2 . . Fire 19 | 3 11 5 Melee . | . . . Ram . | . . . Kick . | . . . Crush . | . . . Escape Stasis . | . . . Rewire . | . . . Trap . | . . . Miscellaneous . | . . . Route ------- -11/Scrapyard -10/Materials -10/Mines History --------- Turn | Location | Event 2 | -11/Scrapyard | Met Revision 17 96 | -11/Scrapyard | Discovered new exit (range 8) 127 | -11/Scrapyard | Entered Materials 279 | -10/Materials | Discovered new exit (range 13) 293 | -10/Materials | Entered Mines 303 | -10/Mines | Learned 2 Materials zone layouts 311 | -10/Mines | Build established: Mutant 339 | -10/Mines | Assembled infested the area 370 | -10/Mines | Core integrity fell below 50% 382 | -10/Mines | Core integrity fell below 20% 385 | -10/Mines | Destroyed by as-73055 with Assembled Heavy Rifle Last Messages --------------- as-53977 destroyed. as-02388 destroyed. Grenade Launcher destroyed. Wheel destroyed. System corrupted by crushing effect (+4). Heat Sink destroyed. Wheel destroyed. Lgt. Ion Engine destroyed. Med. Laser destroyed. Lgt. Ion Engine destroyed. The unstable cave ceiling collapses. Aluminum Leg destroyed. System corrupted: Component data lost. Remember there are three different ways to zoom the map: Scroll the mouse wheel while panning the map with Shift, or toggle via 'z' or the ZOOM button over the map. Knocked back. Lgt. Assault Rifle destroyed. [Achievement: First Step to Greatness] Map ----- +----------------------------------------------------+ | ??????????????????????????????????????????????? | | ??????????????????????????????????????????????? | | ??????????????????????????????????????????????? | | ??????????????????????????????????????????????? | | ??????????????????????????????????????????????? | | ?????????????????????????????# ???????????????? | | ????????????????????????????? ???????????????? | | ????????????????????????????# ???????????????? | | ?????????????????????????### % #??????????????? | | ??????????????# ??????## ! #??????????????? | | ????????????## #????? #??????????????? | | ???????????# ###??? ???????????????? | | ??????????# ? ??# % ???????????????? | | ??????????? ??# ?# ??????##???????? | | ???????????? #??# ## % ????? ##??????? | | ????????????# #???? ???? ## ???? | | ????????????? #??????# #???# ??? | | ?????????????# #???????# %##?# ??? | | ????????????## ##??????## ## #?? | | ?????????#### ##?????# #?? | | ########## % #?????# #??? | | = ##????## #????? | | a #?????### ### ##????? | | ######### a ######### #???? ####?????? | | ????????# a a a a#??????#????????? | | ????????# a@a #???????????????? | | ???????# ### #############???????????????? | | ???????# ##?####???????????????????????????? | | ???????## ##?????????????????????????????????? | | ????????###???????????????????????????????????? | | ??????????????????????????????????????????????? | | | | | | | | | | | | | | | | | | | | | | | | | | | | | | | | | | | | | | | +----------------------------------------------------+ Best States ------------- Heat Dissipation 35 Energy Generation 10 Energy Capacity 125 Matter Stores 300 Matter Capacity 300 Sight Range 16 Terrain Scan Density 10 Resistance: KI 20 Resistance: TH 20 Resistance: EX 20 Resistance: EM 20 Resistance: I 20 Resistance: S 20 Resistance: P 20 Weapon Shielding 33 Evasion (%) 44 Offensive Hacking 10 Item Schematics ----------------- None Robot Schematics ------------------ None Fabricated ------------ Nothing Alien Tech Used ----------------- None Achievements -------------- First Step to Greatness Challenges ------------ None Game ------ Seed AlloyExoskeletonGun Manual? 0 Play Time 00:18:55 Cumulative 0.3 hours Start 2024.04.02 @ 00:51:20 End 2024.04.03 @ 18:27:26 Sessions 2 Manual Loads 0 Difficulty Adventurer Special Mode None Game No. 1 Rogue 0 Adventurer 1 Explorer 0 Win Type - Total 0 Types 0/0/0/0/0/0/0/0/0 Lore% 0 Gallery% 1 Achievement% 0 Wizard Run 0 Options --------- Layout 1 ASCII 0 Keyboard 0 Movement Mouse Keybinds 0 Fullscreen 2 Font 32/SmallcapsGlow Map View 50x35 Zoom Use 0% Tactical HUD 0 Map Filters NONE Filters NONE Steam 1 RUN: 9e415d28-c11d-457d-afc4-3d3fdb0dff3a